bitfinex-derivatives/quotes_ETHF0:USTF0_20241008
["timestamp","ask_amount","ask_price","bid_price","bid_amount"]
[1728386892515,2.6711,2435.1,2435.0,0.41078]
[1728386897720,1.1911,2435.1,2435.0,0.41078]
[1728386897916,2.6711,2435.1,2435.0,0.41078]
[1728386911334,3.08186,2435.1,2435.0,0.41078]
[1728386912746,6.28966,2435.1,2435.0,0.41078]
[1728386917736,5.8789,2435.1,2435.0,0.41078]
[1728386917933,2.6711,2435.1,2435.0,0.41078]
[1728386952263,3.08186,2435.1,2435.0,0.41078]
[1728386954869,6.28966,2435.1,2435.0,0.41078]
[1728386986508,3.08186,2435.1,2435.0,0.41078]
[1728386986709,6.28966,2435.1,2435.0,0.41078]
[1728386988007,5.8789,2435.1,2435.0,0.41078]
[1728386988410,6.28966,2435.1,2435.0,0.41078]
[1728386991203,3.08186,2435.1,2435.0,0.41078]
[1728386993211,6.28966,2435.1,2435.0,0.41078]
[1728386997412,5.8789,2435.1,2435.0,0.41078]
[1728386998509,6.28966,2435.1,2435.0,0.41078]
[1728387000518,5.8789,2435.1,2435.0,0.41078]
[1728387005122,3.2078,2435.1,2435.0,0.41078]
[1728387012428,3.606,2435.1,2435.0,0.41078]
[1728387013320,4.0312,2435.1,2435.0,0.41078]
[1728387013526,0.8234,2435.1,2435.0,0.41078]
[1728387015723,2.3034,2435.1,2435.0,0.41078]
[1728387028637,0.8234,2435.1,2435.0,0.41078]
[1728387029148,1.2211,2435.1,2435.0,0.41078]
[1728387031039,1.2211,2435.1,2435.0,4.51718]
[1728387031344,7.75348,2435.7,2435.6,0.41067]
[1728387031543,5.0855,2435.7,2435.6,0.41067]
[1728387031741,46.29616,2435.7,2435.6,0.41067]
[1728387032849,47.11066,2435.7,2435.6,0.41067]
[1728387033247,46.7,2435.7,2435.6,0.41067]
[1728387033444,5.9,2435.7,2435.6,0.41067]
[1728387036242,6.31066,2435.7,2435.6,0.41067]
[1728387041454,5.9,2435.7,2435.6,0.41067]
[1728387042059,2.6922,2435.7,2435.6,0.41067]
[1728387049264,42.0122,2435.7,2435.6,0.41067]
[1728387050157,43.4922,2435.7,2435.6,0.41067]
[1728387051565,42.0122,2435.7,2435.6,0.41067]
[1728387053760,43.4922,2435.7,2435.6,0.41067]
[1728387057762,43.90286,2435.7,2435.6,0.41067]
[1728387061364,47.11066,2435.7,2435.6,0.41067]
[1728387061865,46.7,2435.7,2435.6,0.41067]
[1728387064072,47.11066,2435.7,2435.6,0.41067]
[1728387066867,0.41069,2435.6,2435.5,0.41068]
[1728387067068,1.89069,2435.6,2435.5,0.41068]
[1728387067675,1.89067,2435.6,2435.5,0.41068]
[1728387068777,0.4107,2435.5,2435.4,0.4107]
[1728387068979,0.41072,2435.4,2435.3,0.41072]
[1728387069175,6.32992,2435.4,2435.3,0.41072]
[1728387069370,0.41073,2435.3,2435.2,0.41073]
[1728387069572,0.41075,2435.2,2435.1,0.41075]
[1728387069777,1.89075,2435.2,2435.1,0.41075]
[1728387070669,0.41076,2435.1,2435.0,0.41076]
[1728387070869,0.41078,2435.0,2434.9,0.41078]
[1728387071171,2.72708,2435.0,2434.9,0.41078]
[1728387071370,0.4108,2434.9,2434.8,0.4108]
[1728387071572,0.4108,2434.9,2434.5,4.23494]
[1728387071573,0.41079,2434.9,2434.5,4.23494]
[1728387071780,1.48,2434.7,2434.6,0.41083]
[1728387071965,1.43744,2434.8,2434.5,3.2078]
[1728387072167,2.2937,2434.6,2434.5,3.61866]
[1728387072367,43.0937,2434.6,2434.5,3.61866]
[1728387072876,40.8,2434.6,2434.5,9.20586]
[1728387078886,1.2241,2434.8,2434.7,0.41083]
[1728387079082,4.6878,2435.1,2435.0,0.41078]
[1728387079280,3.2078,2435.1,2435.0,0.41078]
[1728387079483,44.0078,2435.1,2435.0,0.41078]
[1728387080176,40.8,2435.1,2435.0,0.41078]
[1728387080378,40.8,2435.1,2435.0,5.99718]
[1728387081477,0.8192,2435.3,2435.0,5.99718]
[1728387081678,0.8192,2435.3,2435.2,0.41074]
[1728387082084,41.6192,2435.3,2435.2,0.41074]
[1728387088089,3.6043,2435.6,2435.3,0.41072]
[1728387088289,0.7986,2435.5,2435.4,0.41071]
[1728387088490,41.5986,2435.5,2435.4,0.41071]
[1728387089395,3.6043,2435.6,2435.5,0.41069]
[1728387090392,4.0229,2435.6,2435.5,0.41069]
[1728387096097,0.8151,2435.6,2435.5,0.41069]
[1728387127914,3.6227,2435.9,2435.5,0.41069]
[1728387128117,0.7962,2436.2,2436.1,0.41059]
[1728387128322,1.2136,2436.2,2436.1,1.89059]
[1728387129021,0.4174,2436.2,2436.1,5.99539]
[1728387129424,0.8129,2436.6,2436.1,5.5848]
[1728387129618,0.8129,2436.6,2436.5,0.41052]
[1728387133117,0.4224,2436.7,2436.3,2.50639]
[1728387133318,0.4224,2436.7,2436.6,0.41051]
[1728387133719,0.4224,2436.7,2436.6,1.89051]
[1728387137528,0.4224,2436.7,2436.6,5.99451]
[1728387143431,0.4224,2436.7,2436.6,0.41051]
[1728387144127,0.4224,2436.7,2436.5,1.48]
[1728387144128,2.3129,2436.7,2436.5,0.41052]
[1728387144325,2.3129,2436.7,2436.0,5.71431]
[1728387144326,1.8807,2436.6,2436.0,5.71431]
[1728387144634,1.48,2436.2,2436.1,0.41058]
[1728387145129,2.2595,2436.2,2436.1,0.41058]
[1728387145425,2.67007,2436.2,2436.0,0.41059]
[1728387146224,2.2595,2436.2,2436.1,0.41059]
[1728387149632,2.67007,2436.2,2436.1,0.41059]
[1728387150333,2.2595,2436.2,2436.1,0.41059]
[1728387154740,0.7795,2436.2,2436.1,0.41059]
[1728387156535,0.7795,2436.2,2436.1,1.89059]
[1728387166348,0.3916,2436.5,2436.1,1.89059]
[1728387166559,0.3916,2436.5,2436.4,0.41054]
[1728387166852,8.8228,2437.0,2436.9,0.41046]
[1728387167049,4.6878,2437.0,2436.9,0.41046]
[1728387167251,8.791,2437.0,2436.9,0.41046]
[1728387167754,9.6187,2437.0,2436.9,0.41046]
[1728387167951,5.5155,2437.0,2436.9,0.41046]
[1728387168257,5.9125,2437.0,2436.9,0.41046]
[1728387168456,6.32294,2437.0,2436.5,1.02631]
[1728387168759,6.32294,2437.0,2436.9,0.41046]
[1728387168958,4.4325,2437.0,2436.9,0.41046]
[1728387169160,5.9125,2437.0,2436.9,0.41046]
[1728387169660,6.32294,2437.0,2436.9,0.41046]
[1728387171454,5.9125,2437.0,2436.9,0.41046]
[1728387173565,4.4325,2437.0,2436.9,0.41046]
[1728387174058,1.2247,2437.0,2436.9,0.41046]
[1728387180857,5.9125,2437.0,2436.4,1.02632]
[1728387181057,1.48,2436.8,2436.7,0.41049]
[1728387182167,3.2078,2437.0,2436.9,0.41046]
[1728387183262,3.6045,2437.0,2436.9,0.41046]
[1728387187970,0.3967,2437.0,2436.9,0.41046]
[1728387198671,0.7919,2437.1,2436.8,0.4104]
[1728387198875,0.7919,2437.1,2437.0,0.41044]
[1728387201874,3.2078,2437.6,2437.0,4.6878]
[1728387202076,4.0106,2437.6,2437.5,0.41035]
[1728387202280,8.113,2437.6,2437.5,0.41035]
[1728387202478,4.9052,2437.6,2437.5,0.41035]
[1728387203074,0.8028,2437.6,2437.5,0.41035]
[1728387206976,4.0106,2437.6,2437.5,0.41035]
[1728387219988,4.0106,2437.6,2437.0,0.25024102]
[1728387220290,5.0982,2437.5,2437.1,1.02613]
[1728387220490,5.0982,2437.5,2437.3,0.41041]
[1728387220788,0.4146,2437.4,2437.3,0.41041]
[1728387223289,0.82501,2437.4,2437.3,0.41041]
[1728387223687,0.41043,2437.3,2437.2,0.41043]
[1728387224191,2.30503,2437.4,2437.0,1.02618]
[1728387224391,3.6187,2437.2,2437.1,0.41046]
[1728387225187,4.0462,2437.2,2437.1,0.41046]
[1728387225799,0.8384,2437.2,2437.1,0.41046]
[1728387226092,4.0462,2437.2,2437.1,0.41046]
[1728387228493,0.63686999,2437.2,2437.1,0.41046]
[1728387229282,0.63686999,2437.2,2437.1,1.89046]
[1728387232888,3.84466999,2437.2,2437.1,0.41046]
[1728387240300,0.63686999,2437.2,2437.1,0.41046]
[1728387240501,3.84466999,2437.2,2437.1,0.41046]
[1728387241501,5.32466999,2437.2,2436.8,1.02628]
[1728387241695,0.81627,2437.1,2437.0,0.41047]
[1728387241897,4.02407,2437.1,2437.0,0.41047]
[1728387243395,0.41049,2437.0,2436.9,0.41049]
[1728387243598,0.4105,2436.9,2436.8,0.4105]
[1728387245998,1.02621,2437.0,2436.5,2.50641]
[1728387246310,1.02621,2437.0,2436.6,0.41055]
[1728387246311,3.2078,2436.7,2436.6,0.41055]
[1728387247010,0.41057,2436.5,2436.3,0.41058]
[1728387247307,8.33814,2436.7,2436.2,0.4106]
[1728387247308,4.46489,2436.4,2436.2,0.4106]
[1728387248102,4.46489,2436.4,2436.1,1.48]
[1728387248306,4.46489,2436.4,2436.3,0.4106]
[1728387248513,4.0543,2436.4,2436.3,1.8906]
[1728387249311,4.0543,2436.4,2436.3,2.3009]
[1728387252206,4.0543,2436.4,2436.3,1.8906]
[1728387252910,5.5343,2436.4,2436.0,1.02663]
[1728387253112,5.5343,2436.4,2436.3,0.4106]
[1728387253304,4.0543,2436.4,2436.3,0.4106]
[1728387253506,4.0543,2436.4,2436.2,0.4106]
[1728387253507,4.46489,2436.4,2436.2,0.4106]
[1728387253812,4.46489,2436.4,2436.3,0.4106]
[1728387254212,4.46489,2436.4,2436.2,0.4106]
[1728387254810,4.0543,2436.4,2436.3,0.4106]
[1728387256302,3.2078,2436.4,2436.3,1.8906]
[1728387261211,0.4133,2436.8,2436.7,0.41053]
[1728387274622,3.2078,2436.9,2436.8,0.41051]
[1728387274818,1.02593,2437.7,2437.2,0.41045]
[1728387274819,3.2078,2437.3,2437.2,0.41045]
[1728387278931,0.4205,2437.5,2437.4,0.41041]
[1728387281234,1.9005,2437.5,2437.4,0.41041]
[1728387285538,2.3109,2437.5,2437.4,0.41041]
[1728387288638,1.9005,2437.5,2437.4,0.41041]
[1728387290958,2.3109,2437.5,2437.4,0.41041]
[1728387292958,0.4205,2437.5,2437.4,0.41041]
[1728387299656,3.6283,2437.5,2437.4,0.41041]
[1728387304470,4.0387,2437.5,2437.4,0.41041]
[1728387306472,3.6283,2437.5,2437.4,0.41041]
[1728387307174,3.2078,2437.9,2437.4,11.5824]
[1728387307374,3.2078,2437.9,2437.8,1.89034]
[1728387307765,3.2078,2438.2,2438.0,1.02578]
[1728387307975,3.2078,2438.2,2438.1,2.28419]
[1728387308478,3.2078,2438.2,2438.1,0.80419]
[1728387308972,3.2078,2438.2,2438.1,0.41029]
[1728387311277,3.2078,2438.2,2438.1,1.89029]
[1728387311965,3.2078,2438.2,2438.1,5.99189]
[1728387317975,3.2078,2438.2,2438.1,1.89029]
[1728387322079,3.6117,2438.5,2438.4,0.41024]
[1728387323175,3.6117,2438.5,2438.4,1.89024]
[1728387323575,3.6117,2438.5,2438.4,5.99104]
[1728387323986,3.6117,2438.5,2438.4,1.89024]
[1728387329584,3.6117,2438.5,2438.4,0.41024]
[1728387330089,3.6117,2438.5,2438.4,1.89024]
[1728387338982,3.6117,2438.5,2438.4,0.41024]
[1728387342591,0.4039,2438.5,2438.4,0.41024]
[1728387342788,3.6117,2438.5,2438.4,0.41024]
[1728387347603,0.4103,2438.1,2437.9,0.41031]
[1728387347792,4.4551,2438.0,2437.9,0.41031]
[1728387354706,4.86541,2438.0,2437.9,0.41031]
[1728387355206,4.4551,2438.0,2437.6,1.48]
[1728387355400,0.41033,2437.9,2437.7,0.41035]
[1728387355601,3.2078,2437.8,2437.7,0.41035]
[1728387358107,3.61816,2437.8,2437.6,0.41037]
[1728387358305,0.3916,2437.7,2437.6,0.41037]
[1728387360304,0.80196,2437.7,2437.5,1.48]
[1728387360503,0.8258,2437.6,2437.5,1.89038]
[1728387366511,0.3916,2437.7,2437.5,1.89038]
[1728387366712,3.2078,2437.8,2437.7,0.41036]
[1728387367109,0.8362,2438.2,2438.1,0.41029]
[1728387367309,0.8362,2438.2,2438.1,1.89029]
[1728387367917,3.2078,2438.3,2438.2,0.41028]
[1728387374115,0.4271,2438.5,2438.1,1.8919]
[1728387374423,0.4271,2438.5,2438.4,0.41024]
[1728387374725,3.6349,2438.5,2438.4,0.41024]
[1728387393344,4.04513,2438.5,2438.4,0.41024]
[1728387403648,0.83733,2438.5,2438.4,0.41024]
[1728387404048,4.04513,2438.5,2438.4,0.41024]
[1728387411953,3.6349,2438.5,2438.4,0.41024]
[1728387415762,4.04513,2438.5,2438.4,0.41024]
[1728387416861,3.6349,2438.5,2438.4,0.41024]
[1728387417062,4.04513,2438.5,2438.4,0.41024]
[1728387418067,3.6349,2438.5,2438.4,0.41024]
[1728387419259,14.14593,2438.5,2438.4,0.41024]
[1728387419661,54.94593,2438.5,2438.4,0.41024]
[1728387420260,14.14593,2438.5,2438.4,0.41024]
[1728387420860,8.14593,2438.5,2438.4,0.41024]
[1728387422160,1.02562,2438.4,2437.9,2.05159]
[1728387422360,1.02562,2438.4,2437.5,6.65513397]
[1728387422361,3.2078,2438.0,2437.5,4.60321397]
[1728387422669,3.2078,2437.7,2437.6,0.41038]
[1728387424565,3.2078,2437.7,2437.5,4.60321397]
[1728387424764,0.41039,2437.6,2437.4,0.41041]
[1728387424963,4.6878,2437.7,2437.4,0.41041]
[1728387424964,0.7933,2437.5,2437.4,0.41041]
[1728387425556,0.7933,2437.5,2437.2,1.48]
[1728387425756,3.2078,2437.3,2437.2,1.89045]
[1728387426160,3.2078,2437.3,2437.2,5.99365]
[1728387428566,3.2078,2437.3,2437.2,1.89045]
[1728387429574,3.2078,2437.3,2437.2,5.99365]
[1728387432579,3.2078,2437.3,2437.2,1.89045]
[1728387433862,3.2078,2437.3,2437.2,5.99365]
[1728387434070,3.2078,2437.3,2437.2,1.89045]
[1728387434574,3.2078,2437.3,2437.2,5.99365]
[1728387437871,3.2078,2437.3,2437.2,1.89045]
[1728387438076,0.7933,2437.5,2437.4,0.41041]
[1728387438277,0.7933,2437.5,2437.4,1.89041]
[1728387440276,0.4075,2437.5,2437.4,1.89041]
[1728387440576,3.2078,2437.6,2437.5,0.4104]
[1728387440774,3.2078,2437.6,2437.5,1.8904]
[1728387440975,44.0078,2437.6,2437.5,1.8904]
[1728387441675,0.4029,2437.7,2437.6,0.41038]
[1728387441873,0.4029,2437.7,2437.6,1.89038]
[1728387442077,41.2029,2437.7,2437.6,1.89038]
[1728387442376,3.6346,2437.9,2437.8,0.41034]
[1728387442579,3.6346,2437.9,2437.8,1.89034]
[1728387445981,3.6346,2437.9,2437.8,0.41034]
[1728387446887,4.061,2437.9,2437.8,0.41034]
[1728387455988,0.8532,2437.9,2437.8,0.41034]
[1728387458689,41.6532,2437.9,2437.8,0.41034]
[1728387459077,0.8532,2437.9,2437.8,0.41034]
[1728387459786,0.8532,2437.9,2437.8,1.89034]
[1728387459787,0.4268,2437.9,2437.8,1.89034]
[1728387459986,3.2078,2438.0,2437.9,0.41033]
[1728387465298,1.1957,2438.1,2438.0,0.41031]
[1728387465299,0.8023,2438.1,2438.0,0.41031]
[1728387465592,0.8023,2438.1,2438.0,5.99191]
[1728387470700,0.8023,2438.1,2438.0,1.89031]
[1728387471204,0.8023,2438.1,2438.0,5.99191]
[1728387472400,0.8023,2438.1,2438.0,1.89031]
[1728387472603,0.8023,2438.1,2438.0,0.41031]
[1728387472804,2.2823,2438.1,2437.7,1.02588]
[1728387472999,3.2078,2437.9,2437.8,0.41034]
[1728387473194,4.6878,2437.9,2437.8,0.41034]
[1728387473394,45.4878,2437.9,2437.8,0.41034]
[1728387473601,45.89813,2437.9,2437.8,0.41034]
[1728387473996,45.89813,2437.9,2437.7,0.41035]
[1728387474303,0.4232,2437.8,2437.7,0.41035]
[1728387477205,0.4232,2437.8,2437.7,1.89035]
[1728387479508,0.4232,2437.8,2437.7,0.41035]
[1728387480106,0.83354,2437.8,2437.7,0.41035]
[1728387480405,0.83354,2437.8,2437.7,0.41036]
[1728387481809,0.4232,2437.8,2437.7,0.41036]
[1728387482109,0.4232,2437.8,2437.7,1.89036]
[1728387493214,3.6086,2438.0,2437.7,1.89036]
[1728387493215,3.2078,2438.0,2437.7,1.89036]
[1728387493420,3.2078,2438.0,2437.9,1.89033]
[1728387493921,3.2078,2438.0,2437.9,6.83943]
[1728387498118,3.2078,2438.0,2437.9,0.41033]
[1728387498318,8.7894,2438.0,2437.4,2.506]
[1728387498531,3.2078,2437.7,2437.5,0.4104]
[1728387498832,0.8346,2437.6,2437.5,0.4104]
[1728387499220,3.2078,2437.7,2437.6,0.41038]
[1728387499419,3.2078,2437.7,2437.6,1.89038]
[1728387501229,3.2078,2437.8,2437.7,0.41036]
[1728387501728,3.2078,2437.8,2437.5,0.41038]
[1728387501944,0.41039,2437.6,2437.4,0.41041]
[1728387502324,0.4003,2437.5,2437.0,9.6928528]
[1728387502533,1.24342,2437.4,2437.2,0.41044]
[1728387503331,0.833,2437.4,2437.0,9.2917528]
[1728387503528,0.833,2437.4,2437.3,0.41043]
[1728387509434,0.833,2437.4,2437.2,1.89043]
[1728387509435,1.24342,2437.4,2437.2,1.89043]
[1728387509637,0.41043,2437.3,2437.2,1.89043]
[1728387510339,0.833,2437.4,2437.2,1.89043]
[1728387510340,1.24342,2437.4,2437.2,1.89043]
[1728387511836,1.24342,2437.4,2437.2,1.48]
[1728387511837,0.833,2437.4,2437.2,1.48]
[1728387512143,0.41043,2437.3,2437.2,0.41045]
[1728387513343,1.24342,2437.4,2437.2,0.41045]
[1728387515444,3.2078,2437.3,2437.2,0.41045]
[1728387519453,3.61823,2437.3,2437.1,0.41045]
[1728387519651,0.4154,2437.2,2437.1,0.41045]
[1728387520345,0.82585,2437.2,2437.1,0.41045]
[1728387520547,0.4154,2437.2,2437.1,0.41045]
[1728387530647,0.82585,2437.2,2437.1,0.41045]
[1728387531058,0.4154,2437.2,2437.1,0.41045]
[1728387532158,0.41035,2437.8,2437.6,0.41037]
[1728387532461,0.818,2437.8,2437.6,0.41037]
[1728387532758,4.1024,2437.7,2437.6,0.41037]
[1728387533357,4.507,2437.7,2437.6,0.41037]
[1728387533857,3.2078,2437.9,2437.8,1.02586]
[1728387534057,4.0349,2438.2,2438.1,0.41029]
[1728387534460,8.1365,2438.2,2438.1,0.41029]
[1728387534654,4.0349,2438.2,2438.1,0.41029]
[1728387535462,3.2078,2438.2,2438.1,1.89029]
[1728387536061,3.6132,2438.6,2438.1,1.89029]
[1728387536355,3.6132,2438.6,2438.5,0.41023]
[1728387536751,7.714,2438.6,2438.5,0.41023]
[1728387537353,3.2078,2438.6,2438.5,0.41023]
[1728387537557,4.38234001,2439.3,2438.5,0.41023]
[1728387537558,3.2078,2438.9,2438.8,0.41018]
[1728387539557,3.2078,2439.3,2439.2,0.41011]
[1728387539758,3.5964,2439.3,2439.2,0.41011]
[1728387545577,0.3886,2439.3,2439.2,0.41011]
[1728387545774,3.5964,2439.3,2439.2,0.41011]
[1728387548473,4.00649,2439.3,2439.2,0.41011]
[1728387548671,10.8964,2439.3,2438.8,1.02541]
[1728387548974,3.2078,2438.9,2438.6,4.22552]
[1728387549171,3.2078,2438.9,2438.8,0.41018]
[1728387550673,3.2078,2438.9,2438.7,0.41019]
[1728387550865,3.2078,2438.9,2438.8,0.41018]
[1728387552070,3.2078,2438.9,2438.4,3.2]
[1728387552277,3.2078,2438.6,2438.5,0.41022]
[1728387552472,3.61801,2438.6,2438.2,3.6072]
[1728387552679,0.3916,2438.5,2438.4,0.41024]
[1728387558184,3.2078,2438.6,2438.5,0.41023]
[1728387558481,3.2078,2438.6,2438.5,1.89023]
[1728387558777,3.2078,2438.6,2438.5,6.41803]
[1728387559280,3.2078,2439.1,2439.0,0.41013]
[1728387559574,3.2078,2439.1,2439.0,1.89013]
[1728387562380,3.2078,2439.1,2439.0,13.71013]
[1728387562977,3.2078,2439.1,2439.0,7.71013]
[1728387563182,3.2078,2439.5,2439.0,7.3]
[1728387563377,3.2078,2439.5,2439.4,0.41006]
[1728387567182,3.2078,2439.5,2439.4,7.70926]
[1728387567883,3.2078,2439.8,2439.4,7.2992]
[1728387568082,0.4176,2439.9,2439.8,0.41001]
[1728387568292,0.2,2440.0,2439.8,0.41]
[1728387568584,0.4119,2439.9,2439.8,0.41]
[1728387570081,0.4119,2439.9,2439.7,3.2]
[1728387570281,3.597,2439.8,2439.7,0.41001]
[1728387570783,3.597,2439.8,2439.6,3.2]
[1728387570984,3.597,2439.8,2439.7,0.41002]
[1728387571184,3.9872,2439.8,2439.6,3.61003]
[1728387571389,3.597,2439.8,2439.7,0.41002]
[1728387575480,3.597,2439.8,2439.6,3.2]
[1728387575679,3.597,2439.8,2439.6,0.41004]
[1728387576985,3.597,2439.8,2439.7,0.41002]
[1728387581091,3.2078,2439.8,2439.7,0.41002]
[1728387582888,3.2078,2439.8,2439.4,1.02519]
[1728387583089,3.61781,2439.8,2439.7,0.41002]
[1728387586285,0.41007,2439.5,2439.4,0.41007]
[1728387586492,3.2078,2439.5,2439.0,3.2]
[1728387586699,3.2,2439.8,2439.0,3.61014]
[1728387586700,3.2078,2439.1,2439.0,3.61014]
[1728387587796,3.2078,2439.2,2439.1,0.41012]
[1728387587996,3.2078,2439.2,2439.1,3.61012]
[1728387588397,3.2078,2439.2,2439.1,3.61013]
[1728387591899,3.2078,2439.6,2439.1,3.61013]
[1728387592201,3.6278,2439.3,2439.2,0.41011]
[1728387593103,3.6278,2439.3,2439.2,3.61011]
[1728387593905,4.03789,2439.3,2439.2,3.2]
[1728387594899,4.03789,2439.3,2439.2,3.61011]
[1728387595805,4.03789,2439.3,2439.2,3.2]
[1728387596100,4.03789,2439.3,2439.2,3.61011]
[1728387596805,4.03789,2439.3,2439.2,3.2]
[1728387597110,4.03789,2439.3,2439.2,3.61011]
[1728387597499,0.41013,2439.1,2439.0,3.2]
[1728387597802,0.41013,2439.1,2438.5,0.41023]
[1728387597803,0.41019,2438.8,2438.5,0.41023]
[1728387598001,3.6145,2438.7,2438.6,0.4102]
[1728387600697,0.4067,2438.7,2438.6,0.4102]
[1728387605407,3.2078,2438.8,2438.7,0.41019]
[1728387605610,0.8006,2439.0,2438.9,0.41016]
[1728387614714,1.21074,2439.0,2438.9,0.41016]
[1728387615407,0.41016,2438.9,2438.8,0.41016]
[1728387615612,3.61796,2438.9,2438.8,0.41016]
[1728387615810,3.2078,2438.9,2438.8,0.41016]
[1728387616420,3.61796,2438.9,2438.8,0.41016]
[1728387617016,3.2078,2438.9,2438.8,0.41016]
[1728387620421,3.2078,2438.9,2438.8,1.89016]
[1728387626017,3.61796,2438.9,2438.8,0.41016]
[1728387626921,3.2078,2438.9,2438.8,0.41016]
[1728387628022,3.2078,2438.9,2438.8,10.51016]
[1728387628232,3.2078,2438.9,2438.8,10.91996]
[1728387628523,1.2133,2439.4,2438.8,10.91996]
[1728387628524,1.2133,2439.4,2439.3,0.41009]
[1728387628726,1.2133,2439.4,2439.3,1.89009]
[1728387632915,3.2078,2439.5,2439.3,1.48]
[1728387633121,3.2078,2439.5,2439.4,0.41008]
[1728387634131,0.8205,2439.7,2439.6,0.41004]
[1728387634331,0.8205,2439.7,2439.6,1.89004]
[1728387637131,3.2078,2439.8,2439.6,1.89004]
[1728387637132,3.2078,2439.8,2439.7,0.41002]
[1728387642029,0.3868,2439.9,2439.8,0.41001]
[1728387642228,0.3868,2439.9,2439.8,1.89001]
[1728387642631,0.3868,2439.9,2439.8,0.41001]
[1728387643929,0.3868,2439.9,2439.7,0.41001]
[1728387644132,0.3868,2439.9,2439.6,1.89003]
[1728387644133,3.61781,2439.8,2439.6,1.89003]
[1728387644332,0.4017,2439.7,2439.6,1.89003]
[1728387649544,3.2078,2439.8,2439.6,1.48]
[1728387649836,0.2,2440.0,2439.9,0.40999]
[1728387650338,1.4045,2440.0,2439.9,0.40999]
[1728387660554,1.4045,2440.0,2439.8,0.41]
[1728387660555,0.41,2439.9,2439.8,0.41]
[1728387660752,0.41001,2439.8,2439.7,0.41001]
[1728387661049,3.61781,2439.8,2439.7,0.41001]
[1728387661460,3.2078,2439.8,2439.7,0.41001]
[1728387664165,3.61781,2439.8,2439.7,0.41001]
[1728387664751,3.61781,2439.8,2439.6,0.41002]
[1728387664752,0.41003,2439.7,2439.6,0.41002]
[1728387664951,0.392,2439.7,2439.6,0.41002]
[1728387665255,4.4912,2439.7,2439.5,0.41005]
[1728387665446,4.4912,2439.7,2438.9,4.22538]
[1728387665447,1.02515,2439.5,2438.9,4.22538]
[1728387665653,0.41012,2439.2,2439.1,0.41012]
[1728387665857,3.2078,2439.2,2439.1,0.41012]
[1728387666756,4.0392,2439.2,2439.1,0.41012]
[1728387667148,3.2078,2439.5,2439.4,0.41008]
[1728387667458,4.0392,2439.5,2439.4,3.61008]
[1728387668054,4.4454,2439.5,2439.4,3.61008]
[1728387668753,4.4454,2439.5,2439.4,0.41008]
[1728387668964,4.85546,2439.5,2439.4,0.41008]
[1728387669261,4.4454,2439.5,2439.4,0.41008]
[1728387671453,4.85546,2439.5,2439.4,0.41008]
[1728387671747,4.4454,2439.5,2439.4,0.41008]
[1728387674262,4.85546,2439.5,2439.4,0.41008]
[1728387674555,4.4454,2439.5,2439.4,0.41008]
[1728387675456,4.85546,2439.5,2439.4,0.41008]
[1728387676160,4.4454,2439.5,2439.4,0.41008]
[1728387684467,4.4454,2439.5,2439.4,1.89008]
[1728387691261,3.2078,2439.5,2439.4,5.98928]
[1728387691471,3.2078,2439.5,2439.4,6.80658]
[1728387692260,3.2078,2439.5,2439.4,4.50928]
[1728387692462,3.2078,2439.5,2439.4,5.98928]
[1728387692662,3.2078,2439.5,2439.4,1.89008]
[1728387692861,3.2078,2439.5,2439.4,5.98928]
[1728387693065,3.2078,2439.5,2439.4,1.89008]
[1728387693869,3.2078,2439.5,2439.4,0.41008]
[1728387694067,3.2078,2439.5,2439.4,1.89008]
[1728387697763,0.60999,2440.0,2439.4,14.787]
[1728387697764,0.2,2440.0,2439.4,14.787]
[1728387697969,0.2,2440.0,2439.9,0.40999]
[1728387698370,3.2078,2440.5,2440.4,0.40991]
[1728387698564,3.6177,2440.5,2440.2,0.40993]
[1728387698769,3.6177,2440.5,2440.1,1.48]
[1728387698983,3.2078,2440.2,2440.1,1.48]
[1728387699167,3.2078,2440.2,2440.1,1.88996]
[1728387701475,3.61775,2440.2,2440.0,0.40997]
[1728387701670,0.7789,2440.1,2439.7,1.48]
[1728387701870,0.7789,2440.1,2440.0,0.40997]
[1728387702481,0.7789,2440.1,2439.7,1.48]
[1728387702672,0.7789,2440.1,2440.0,0.40997]
[1728387703870,1.18886,2440.1,2440.0,0.40997]
[1728387704078,0.7789,2440.1,2440.0,0.40997]
[1728387705482,1.18886,2440.1,2440.0,0.40997]
[1728387708479,3.2078,2440.2,2440.0,1.48]
[1728387708784,3.2078,2440.2,2440.1,0.40996]
[1728387714173,0.8258,2440.4,2440.3,0.40992]
[1728387714386,4.0336,2440.4,2440.3,0.40992]
[1728387714584,8.54111,2440.4,2440.3,0.40992]
[1728387714982,8.1312,2440.4,2440.3,0.40992]
[1728387715181,4.0336,2440.4,2440.3,0.40992]
[1728387715381,4.0336,2440.4,2440.3,1.88992]
[1728387719387,4.0336,2440.4,2440.3,0.40992]
[1728387722789,4.44351,2440.4,2440.3,0.40992]
[1728387722997,4.0336,2440.4,2440.3,0.40992]
[1728387723800,4.44351,2440.4,2440.3,0.40992]
[1728387724594,4.0336,2440.4,2440.2,1.48]
[1728387724789,4.0336,2440.4,2439.8,0.67074472]
[1728387724790,4.0336,2440.4,2439.9,1.48]
[1728387724992,0.40994,2440.3,2440.2,0.40994]
[1728387725193,3.61774,2440.3,2440.2,0.40994]